[Event "Late-Titled-Tuesday-Blitz-May-07-2024"]
[Site "Chess.com"]
[Date "2024.05.07"]
[Round "8"]
[White "hikaruchija"]
[Black "Godzillator"]
[Result "1-0"]
[WhiteElo "2518"]
[BlackElo "2352"]
[TimeControl "180+1"]
[EndTime "15:24:53 PDT"]
[Termination "hikaruchija won by resignation"]

1. e4 {[%clk 0:03:00.9]} 1... d5 {[%clk 0:02:59.3]} 2. Nc3 {[%clk 0:02:55.3]}
2... d4 {[%clk 0:02:58.2]} 3. Nce2 {[%clk 0:02:54.7]} 3... c5 {[%clk 0:02:57.5]}
4. d3 {[%clk 0:02:54.7]} 4... Nc6 {[%clk 0:02:57.7]} 5. g3 {[%clk 0:02:53.5]}
5... e5 {[%clk 0:02:58]} 6. Bg2 {[%clk 0:02:53.2]} 6... Bd6 {[%clk 0:02:52.5]}
7. f4 {[%clk 0:02:51.2]} 7... Nge7 {[%clk 0:02:49.7]} 8. Nf3 {[%clk 0:02:49.5]}
8... f6 {[%clk 0:02:49.5]} 9. c4 {[%clk 0:02:46.7]} 9... O-O {[%clk 0:02:48.5]}
10. O-O {[%clk 0:02:45.9]} 10... Bg4 {[%clk 0:02:48.3]} 11. a3 {[%clk 0:02:42]}
11... a5 {[%clk 0:02:47.6]} 12. f5 {[%clk 0:02:34.4]} 12... g6 {[%clk
0:02:35.5]} 13. h3 {[%clk 0:02:31.3]} 13... Bxf3 {[%clk 0:02:35]} 14. Rxf3
{[%clk 0:02:32.2]} 14... gxf5 {[%clk 0:02:35.3]} 15. exf5 {[%clk 0:02:31.7]}
15... Kh8 {[%clk 0:02:35.1]} 16. g4 {[%clk 0:02:31.7]} 16... Rg8 {[%clk
0:02:35.3]} 17. Ng3 {[%clk 0:02:31.6]} 17... Qc7 {[%clk 0:02:27.7]} 18. Ne4
{[%clk 0:02:30.9]} 18... Raf8 {[%clk 0:02:23.9]} 19. Bh6 {[%clk 0:02:29.2]}
19... Rf7 {[%clk 0:02:22.7]} 20. Qd2 {[%clk 0:02:28.1]} 20... Nb8 {[%clk
0:02:19]} 21. Raf1 {[%clk 0:02:23.6]} 21... Nd7 {[%clk 0:02:18.9]} 22. g5 {[%clk
0:02:19.1]} 22... fxg5 {[%clk 0:02:18.3]} 23. Nxg5 {[%clk 0:02:17.2]} 23... Rf6
{[%clk 0:02:15.3]} 24. Ne4 {[%clk 0:02:16.8]} 24... Rf7 {[%clk 0:02:05.9]} 25.
f6 {[%clk 0:02:15.5]} 25... Nc6 {[%clk 0:01:55.3]} 26. Ng5 {[%clk 0:02:12.5]}
26... Nd8 {[%clk 0:01:55.5]} 27. Nxf7+ {[%clk 0:02:10.2]} 27... Nxf7 {[%clk
0:01:55.7]} 28. Bg7+ {[%clk 0:02:10.8]} 28... Rxg7 {[%clk 0:01:51.6]} 29. fxg7+
{[%clk 0:02:11.7]} 1-0

[Event "Late-Titled-Tuesday-Blitz-May-07-2024"]
[Site "Chess.com"]
[Date "2024.05.07"]
[Round "8"]
[White "Rital44"]
[Black "sammartin99"]
[Result "0-1"]
[WhiteElo "2705"]
[BlackElo "2618"]
[TimeControl "180+1"]
[EndTime "15:25:08 PDT"]
[Termination "sammartin99 won by resignation"]

1. e4 {[%clk 0:03:00.9]} 1... c5 {[%clk 0:02:18.5]} 2. Nf3 {[%clk 0:02:55.5]}
2... Nc6 {[%clk 0:02:18.5]} 3. d4 {[%clk 0:02:53.6]} 3... cxd4 {[%clk
0:02:19.1]} 4. Nxd4 {[%clk 0:02:54.5]} 4... Nf6 {[%clk 0:02:19.4]} 5. Nc3 {[%clk
0:02:53.7]} 5... e5 {[%clk 0:02:20]} 6. Ndb5 {[%clk 0:02:54]} 6... d6 {[%clk
0:02:20.6]} 7. Bg5 {[%clk 0:02:52.9]} 7... a6 {[%clk 0:02:21]} 8. Bxf6 {[%clk
0:02:51.4]} 8... gxf6 {[%clk 0:02:20]} 9. Na3 {[%clk 0:02:49]} 9... b5 {[%clk
0:02:19.9]} 10. Nd5 {[%clk 0:02:49.5]} 10... f5 {[%clk 0:02:17.4]} 11. c3 {[%clk
0:02:25.1]} 11... fxe4 {[%clk 0:02:08.4]} 12. Qd4 {[%clk 0:02:18.2]} 12... exd4
{[%clk 0:02:00.2]} 13. cxd4 {[%clk 0:01:41.4]} 13... Be6 {[%clk 0:01:55]} 14.
Ne3 {[%clk 0:01:36.8]} 14... Nxd4 {[%clk 0:01:53.3]} 15. Rd1 {[%clk 0:01:35.6]}
15... Qa5+ {[%clk 0:01:52.5]} 16. Rd2 {[%clk 0:01:35.4]} 16... Bg7 {[%clk
0:01:50.3]} 17. g3 {[%clk 0:01:34.4]} 17... Nf3+ {[%clk 0:01:49.8]} 0-1

[Event "Late-Titled-Tuesday-Blitz-May-07-2024"]
[Site "Chess.com"]
[Date "2024.05.07"]
[Round "8"]
[White "manitodeplomo"]
[Black "Onthequiet"]
[Result "1-0"]
[WhiteElo "2589"]
[BlackElo "2394"]
[TimeControl "180+1"]
[EndTime "15:25:23 PDT"]
[Termination "manitodeplomo won by resignation"]

1. d4 {[%clk 0:02:57.4]} 1... Nf6 {[%clk 0:02:57]} 2. c4 {[%clk 0:02:55.6]} 2...
e6 {[%clk 0:02:56.9]} 3. Nf3 {[%clk 0:02:55.6]} 3... Bb4+ {[%clk 0:02:55.6]} 4.
Bd2 {[%clk 0:02:55.1]} 4... Be7 {[%clk 0:02:55.4]} 5. Nc3 {[%clk 0:02:53.9]}
5... b6 {[%clk 0:02:55.4]} 6. e4 {[%clk 0:02:52.7]} 6... d6 {[%clk 0:02:54.7]}
7. e5 {[%clk 0:02:48.3]} 7... Nfd7 {[%clk 0:02:53.7]} 8. Qe2 {[%clk 0:02:38.6]}
8... O-O {[%clk 0:02:52.1]} 9. O-O-O {[%clk 0:02:37.2]} 9... Re8 {[%clk
0:02:42.3]} 10. Qe4 {[%clk 0:02:35.3]} 10... c6 {[%clk 0:02:36.6]} 11. Bd3
{[%clk 0:02:30.5]} 11... Nf8 {[%clk 0:02:33.8]} 12. h4 {[%clk 0:02:18.9]} 12...
d5 {[%clk 0:02:33.6]} 13. Qg4 {[%clk 0:02:11.3]} 13... Ba6 {[%clk 0:02:19.1]}
14. Bh6 {[%clk 0:02:02.7]} 14... g6 {[%clk 0:02:12.8]} 15. h5 {[%clk 0:02:02.2]}
15... Bxc4 {[%clk 0:02:10.9]} 16. hxg6 {[%clk 0:01:57.9]} 16... fxg6 {[%clk
0:01:45.5]} 17. Bxf8 {[%clk 0:01:51]} 17... Bxf8 {[%clk 0:01:45.3]} 18. Bxg6
{[%clk 0:01:50.6]} 18... hxg6 {[%clk 0:01:41.3]} 19. Qxg6+ {[%clk 0:01:50.9]}
19... Bg7 {[%clk 0:01:41.3]} 20. Ng5 {[%clk 0:01:49.8]} 20... Re7 {[%clk
0:01:34.9]} 21. Rh8+ {[%clk 0:01:48.4]} 1-0

[Event "Late-Titled-Tuesday-Blitz-May-07-2024"]
[Site "Chess.com"]
[Date "2024.05.07"]
[Round "8"]
[White "TheoSlade"]
[Black "OriTaichman"]
[Result "0-1"]
[WhiteElo "2470"]
[BlackElo "2616"]
[TimeControl "180+1"]
[EndTime "15:25:31 PDT"]
[Termination "OriTaichman won by checkmate"]

1. d4 {[%clk 0:03:00.9]} 1... Nf6 {[%clk 0:02:56.9]} 2. c4 {[%clk 0:03:00.3]}
2... g6 {[%clk 0:02:57.2]} 3. Nc3 {[%clk 0:03:00.1]} 3... Bg7 {[%clk 0:02:57.5]}
4. e4 {[%clk 0:03:00.2]} 4... O-O {[%clk 0:02:56.7]} 5. Nf3 {[%clk 0:03:00.5]}
5... d6 {[%clk 0:02:56.7]} 6. Be2 {[%clk 0:03:01.1]} 6... e5 {[%clk 0:02:57.2]}
7. Be3 {[%clk 0:03:01.6]} 7... Ng4 {[%clk 0:02:56.7]} 8. Bg5 {[%clk 0:03:02.1]}
8... f6 {[%clk 0:02:57.2]} 9. Bh4 {[%clk 0:03:02.8]} 9... Nc6 {[%clk 0:02:57.7]}
10. d5 {[%clk 0:03:02.9]} 10... Ne7 {[%clk 0:02:58.3]} 11. h3 {[%clk 0:03:02.3]}
11... Nh6 {[%clk 0:02:58.4]} 12. g4 {[%clk 0:03:02.7]} 12... g5 {[%clk
0:02:48.1]} 13. Bg3 {[%clk 0:03:02.6]} 13... Ng6 {[%clk 0:02:48.6]} 14. Nd2
{[%clk 0:02:57.6]} 14... Nf4 {[%clk 0:02:47]} 15. Nf1 {[%clk 0:02:53.9]} 15...
Nf7 {[%clk 0:02:41.5]} 16. Ne3 {[%clk 0:02:53.1]} 16... h5 {[%clk 0:02:34.6]}
17. gxh5 {[%clk 0:02:48.2]} 17... Nh6 {[%clk 0:02:34.5]} 18. Bg4 {[%clk
0:02:43.4]} 18... f5 {[%clk 0:02:33.4]} 19. exf5 {[%clk 0:02:33.6]} 19... e4
{[%clk 0:02:31.1]} 20. Nxe4 {[%clk 0:02:19.6]} 20... Bxb2 {[%clk 0:02:30.1]} 21.
Rb1 {[%clk 0:02:20]} 21... Be5 {[%clk 0:02:27.5]} 22. h4 {[%clk 0:02:11.9]}
22... Nxf5 {[%clk 0:02:13.6]} 23. hxg5 {[%clk 0:02:01.2]} 23... Nxe3 {[%clk
0:02:09.6]} 24. fxe3 {[%clk 0:01:59.2]} 24... Ng2+ {[%clk 0:01:56.7]} 25. Kd2
{[%clk 0:01:59.7]} 25... Bxg3 {[%clk 0:01:55.8]} 26. Nxg3 {[%clk 0:01:54.6]}
26... Rf2+ {[%clk 0:01:54.2]} 27. Kd3 {[%clk 0:01:41.1]} 27... Qxg5 {[%clk
0:01:50.9]} 28. Ne4 {[%clk 0:01:31.9]} 28... Qxe3# {[%clk 0:01:49.7]} 0-1

[Event "Late-Titled-Tuesday-Blitz-May-07-2024"]
[Site "Chess.com"]
[Date "2024.05.07"]
[Round "8"]
[White "lilylg"]
[Black "FMalexhdez"]
[Result "0-1"]
[WhiteElo "2208"]
[BlackElo "2231"]
[TimeControl "180+1"]
[EndTime "15:25:47 PDT"]
[Termination "FMalexhdez won by resignation"]

1. d4 {[%clk 0:03:00.9]} 1... Nf6 {[%clk 0:02:41.4]} 2. c4 {[%clk 0:02:59.8]}
2... e6 {[%clk 0:02:40.8]} 3. Nf3 {[%clk 0:02:59.3]} 3... Bb4+ {[%clk
0:02:38.2]} 4. Bd2 {[%clk 0:02:59.7]} 4... Qe7 {[%clk 0:02:37.5]} 5. g3 {[%clk
0:02:59.3]} 5... c5 {[%clk 0:02:36.6]} 6. Bxb4 {[%clk 0:02:55.5]} 6... cxb4
{[%clk 0:02:36.4]} 7. Bg2 {[%clk 0:02:56.4]} 7... O-O {[%clk 0:02:32.9]} 8. O-O
{[%clk 0:02:57]} 8... d5 {[%clk 0:02:32]} 9. Nbd2 {[%clk 0:02:57.3]} 9... b6
{[%clk 0:02:28.9]} 10. Qc2 {[%clk 0:02:57.3]} 10... Bb7 {[%clk 0:02:28.7]} 11.
Ne5 {[%clk 0:02:57]} 11... Rc8 {[%clk 0:02:19.9]} 12. Rac1 {[%clk 0:02:50.9]}
12... Nbd7 {[%clk 0:02:19.1]} 13. Nxd7 {[%clk 0:02:46]} 13... Qxd7 {[%clk
0:02:10.5]} 14. Qd1 {[%clk 0:02:46.3]} 14... dxc4 {[%clk 0:02:06.8]} 15. Nxc4
{[%clk 0:02:46.1]} 15... Bxg2 {[%clk 0:02:03.8]} 16. Kxg2 {[%clk 0:02:46.3]}
16... Rxc4 {[%clk 0:01:57.1]} 17. Rxc4 {[%clk 0:02:42.1]} 17... Qd5+ {[%clk
0:01:56.9]} 18. f3 {[%clk 0:02:35.8]} 18... Qxc4 {[%clk 0:01:56.6]} 19. b3
{[%clk 0:02:34.6]} 19... Qc3 {[%clk 0:01:53.6]} 20. Qa1 {[%clk 0:02:17.8]} 20...
Nd5 {[%clk 0:01:48.4]} 21. Rc1 {[%clk 0:02:10.8]} 21... Qd2 {[%clk 0:01:41.3]}
22. Re1 {[%clk 0:02:00.8]} 22... Nc3 {[%clk 0:01:39.4]} 23. Kf1 {[%clk
0:01:34.5]} 23... Qxd4 {[%clk 0:01:35.9]} 24. e3 {[%clk 0:01:25.9]} 24... Qd3+
{[%clk 0:01:33.2]} 0-1

[Event "Late-Titled-Tuesday-Blitz-May-07-2024"]
[Site "Chess.com"]
[Date "2024.05.07"]
[Round "8"]
[White "1g60-1"]
[Black "NCchamp"]
[Result "0-1"]
[WhiteElo "2418"]
[BlackElo "2273"]
[TimeControl "180+1"]
[EndTime "15:26:11 PDT"]
[Termination "NCchamp won by resignation"]

1. Nf3 {[%clk 0:02:58.7]} 1... d5 {[%clk 0:02:59.8]} 2. e3 {[%clk 0:02:57.1]}
2... Nf6 {[%clk 0:02:58.2]} 3. c4 {[%clk 0:02:57.3]} 3... c6 {[%clk 0:02:54.5]}
4. Nc3 {[%clk 0:02:57.3]} 4... Bg4 {[%clk 0:02:46.3]} 5. h3 {[%clk 0:02:55.2]}
5... Bxf3 {[%clk 0:02:45.8]} 6. Qxf3 {[%clk 0:02:55.4]} 6... e6 {[%clk
0:02:44.3]} 7. b3 {[%clk 0:02:54.7]} 7... Nbd7 {[%clk 0:02:43.5]} 8. Bb2 {[%clk
0:02:46.2]} 8... Bd6 {[%clk 0:02:38.8]} 9. O-O-O {[%clk 0:02:43.8]} 9... O-O
{[%clk 0:02:38.8]} 10. g4 {[%clk 0:02:43.8]} 10... a5 {[%clk 0:02:20.9]} 11. Qg2
{[%clk 0:02:33.4]} 11... Qc7 {[%clk 0:01:59.2]} 12. g5 {[%clk 0:02:31.7]} 12...
Ne8 {[%clk 0:01:58.8]} 13. h4 {[%clk 0:02:21.4]} 13... dxc4 {[%clk 0:01:51]} 14.
Bxc4 {[%clk 0:02:18.4]} 14... b5 {[%clk 0:01:49.8]} 15. Bd3 {[%clk 0:02:14.6]}
15... Nc5 {[%clk 0:01:33]} 16. Bc2 {[%clk 0:02:11.3]} 16... a4 {[%clk
0:01:19.5]} 17. g6 {[%clk 0:01:54.7]} 17... fxg6 {[%clk 0:01:07.8]} 18. Ne4
{[%clk 0:01:52.4]} 18... axb3 {[%clk 0:01:00.7]} 19. axb3 {[%clk 0:01:52.2]}
19... Nf6 {[%clk 0:00:47.6]} 20. Nxc5 {[%clk 0:01:48.5]} 20... Bxc5 {[%clk
0:00:47.4]} 21. Qe4 {[%clk 0:01:43.7]} 21... Nxe4 {[%clk 0:00:46.6]} 0-1

[Event "Late-Titled-Tuesday-Blitz-May-07-2024"]
[Site "Chess.com"]
[Date "2024.05.07"]
[Round "8"]
[White "Mikayel99"]
[Black "Eloist"]
[Result "0-1"]
[WhiteElo "2587"]
[BlackElo "2441"]
[TimeControl "180+1"]
[EndTime "15:26:25 PDT"]
[Termination "Eloist won by resignation"]

1. e4 {[%clk 0:03:00.9]} 1... e6 {[%clk 0:03:00]} 2. Nf3 {[%clk 0:02:58]} 2...
d5 {[%clk 0:02:59.6]} 3. exd5 {[%clk 0:02:58.4]} 3... exd5 {[%clk 0:02:59.5]} 4.
c4 {[%clk 0:02:56.9]} 4... d4 {[%clk 0:02:51.3]} 5. d3 {[%clk 0:02:57.2]} 5...
Bb4+ {[%clk 0:02:49.8]} 6. Bd2 {[%clk 0:02:57.4]} 6... a5 {[%clk 0:02:48.9]} 7.
a3 {[%clk 0:02:52]} 7... Bxd2+ {[%clk 0:02:46.3]} 8. Nbxd2 {[%clk 0:02:52.9]}
8... Nf6 {[%clk 0:02:40.7]} 9. Be2 {[%clk 0:02:51.3]} 9... O-O {[%clk
0:02:37.8]} 10. O-O {[%clk 0:02:52]} 10... Nc6 {[%clk 0:02:29.1]} 11. b4 {[%clk
0:02:47.1]} 11... axb4 {[%clk 0:02:26.8]} 12. axb4 {[%clk 0:02:48]} 12... Rxa1
{[%clk 0:02:26.2]} 13. Qxa1 {[%clk 0:02:46.9]} 13... Re8 {[%clk 0:02:19.4]} 14.
Bd1 {[%clk 0:02:40]} 14... Nxb4 {[%clk 0:02:15.3]} 15. Nxd4 {[%clk 0:02:32.8]}
15... Nxd3 {[%clk 0:02:10.2]} 16. Bf3 {[%clk 0:02:27.6]} 16... Ne5 {[%clk
0:02:04.4]} 17. Rd1 {[%clk 0:02:22.6]} 17... Nxf3+ {[%clk 0:01:56.4]} 18. N2xf3
{[%clk 0:02:23.5]} 18... Bg4 {[%clk 0:01:43.5]} 19. h3 {[%clk 0:02:21.2]} 19...
Bxf3 {[%clk 0:01:40.8]} 20. Nxf3 {[%clk 0:02:22.1]} 20... Qe7 {[%clk 0:01:35.4]}
21. Re1 {[%clk 0:02:16.8]} 21... Qd7 {[%clk 0:01:31.8]} 22. Rxe8+ {[%clk
0:02:15.9]} 22... Qxe8 {[%clk 0:01:27.3]} 23. Qa7 {[%clk 0:02:13.4]} 23... Qc8
{[%clk 0:01:11.5]} 24. Nd4 {[%clk 0:02:07.5]} 24... g6 {[%clk 0:01:05.2]} 25.
Nb5 {[%clk 0:02:07.5]} 25... Ne8 {[%clk 0:00:45.3]} 26. Qc5 {[%clk 0:01:57.3]}
26... c6 {[%clk 0:00:44.3]} 27. Nd4 {[%clk 0:01:56.3]} 27... Qd7 {[%clk
0:00:42.5]} 28. Nf3 {[%clk 0:01:53.6]} 28... Qd1+ {[%clk 0:00:40.8]} 29. Kh2
{[%clk 0:01:53.6]} 29... Qd6+ {[%clk 0:00:41]} 30. Qxd6 {[%clk 0:01:53.9]} 30...
Nxd6 {[%clk 0:00:41.9]} 31. c5 {[%clk 0:01:54.6]} 31... Ne4 {[%clk 0:00:41.3]}
0-1

[Event "Late-Titled-Tuesday-Blitz-May-07-2024"]
[Site "Chess.com"]
[Date "2024.05.07"]
[Round "8"]
[White "klifus"]
[Black "PNEPaul"]
[Result "1-0"]
[WhiteElo "2144"]
[BlackElo "1939"]
[TimeControl "180+1"]
[EndTime "15:26:42 PDT"]
[Termination "klifus won by resignation"]

1. Nf3 {[%clk 0:03:00.9]} 1... a6 {[%clk 0:02:58.4]} 2. c4 {[%clk 0:02:58.2]}
2... d6 {[%clk 0:02:58.6]} 3. d4 {[%clk 0:02:56.4]} 3... g6 {[%clk 0:02:58.8]}
4. Nc3 {[%clk 0:02:55.1]} 4... h6 {[%clk 0:02:59]} 5. g3 {[%clk 0:02:51.5]} 5...
Nd7 {[%clk 0:02:58.8]} 6. Bg2 {[%clk 0:02:51.1]} 6... Bg7 {[%clk 0:02:58.9]} 7.
O-O {[%clk 0:02:47]} 7... e6 {[%clk 0:02:59]} 8. e4 {[%clk 0:02:45.1]} 8... Ne7
{[%clk 0:02:59]} 9. Be3 {[%clk 0:02:43.4]} 9... O-O {[%clk 0:02:58.8]} 10. Qd2
{[%clk 0:02:42]} 10... Kh7 {[%clk 0:02:58.5]} 11. Rfe1 {[%clk 0:02:40]} 11... e5
{[%clk 0:02:58]} 12. Rad1 {[%clk 0:02:36.4]} 12... Qe8 {[%clk 0:02:57.6]} 13.
dxe5 {[%clk 0:02:23.4]} 13... dxe5 {[%clk 0:02:54.7]} 14. Nd5 {[%clk 0:02:16.4]}
14... Nxd5 {[%clk 0:02:52]} 15. cxd5 {[%clk 0:02:14.4]} 15... f5 {[%clk
0:02:50.1]} 16. exf5 {[%clk 0:02:05.6]} 16... gxf5 {[%clk 0:02:49.6]} 17. Nh4
{[%clk 0:02:02.3]} 17... e4 {[%clk 0:02:43.7]} 18. Bf4 {[%clk 0:01:56.1]} 18...
Ne5 {[%clk 0:02:40.6]} 19. Bxe5 {[%clk 0:01:40]} 19... Bxe5 {[%clk 0:02:38.1]}
20. f3 {[%clk 0:01:38.7]} 20... Bf6 {[%clk 0:02:12]} 21. fxe4 {[%clk 0:01:38]}
21... Bxh4 {[%clk 0:02:11.8]} 22. exf5 {[%clk 0:01:35.1]} 22... Qf7 {[%clk
0:02:01.8]} 23. gxh4 {[%clk 0:01:34.1]} 23... Bxf5 {[%clk 0:01:58.2]} 24. Kh1
{[%clk 0:01:21.4]} 24... Rae8 {[%clk 0:01:37.2]} 25. Qb4 {[%clk 0:01:14.7]}
25... Rxe1+ {[%clk 0:01:33]} 26. Rxe1 {[%clk 0:01:13.8]} 26... Rd8 {[%clk
0:01:01.8]} 27. Re7 {[%clk 0:01:08.8]} 1-0

[Event "Late-Titled-Tuesday-Blitz-May-07-2024"]
[Site "Chess.com"]
[Date "2024.05.07"]
[Round "8"]
[White "RespectfulDaveOnYouTube"]
[Black "cycygogne"]
[Result "1-0"]
[WhiteElo "2409"]
[BlackElo "2169"]
[TimeControl "180+1"]
[EndTime "15:26:53 PDT"]
[Termination "RespectfulDaveOnYouTube won by resignation"]

1. d4 {[%clk 0:02:59.3]} 1... Nf6 {[%clk 0:02:58]} 2. Nc3 {[%clk 0:02:58.6]}
2... d5 {[%clk 0:02:56.5]} 3. Bf4 {[%clk 0:02:58.5]} 3... Bf5 {[%clk 0:02:55.7]}
4. f3 {[%clk 0:02:56.4]} 4... c6 {[%clk 0:02:53]} 5. g4 {[%clk 0:02:55.6]} 5...
Bg6 {[%clk 0:02:52.8]} 6. h4 {[%clk 0:02:56.3]} 6... h5 {[%clk 0:02:51.2]} 7. g5
{[%clk 0:02:54.4]} 7... Nfd7 {[%clk 0:02:51.3]} 8. e3 {[%clk 0:02:51.3]} 8... e6
{[%clk 0:02:42.4]} 9. Bd3 {[%clk 0:02:51.5]} 9... Be7 {[%clk 0:02:38.2]} 10.
Bxg6 {[%clk 0:02:48.7]} 10... fxg6 {[%clk 0:02:39.1]} 11. Qd3 {[%clk 0:02:48.9]}
11... Kf7 {[%clk 0:02:36.2]} 12. Nge2 {[%clk 0:02:49.2]} 12... c5 {[%clk
0:02:30.3]} 13. O-O-O {[%clk 0:02:44.1]} 13... c4 {[%clk 0:02:27]} 14. Qd2
{[%clk 0:02:44.3]} 14... Qa5 {[%clk 0:02:21.9]} 15. e4 {[%clk 0:02:42.4]} 15...
b5 {[%clk 0:02:08.6]} 16. exd5 {[%clk 0:02:39]} 16... exd5 {[%clk 0:02:09.5]}
17. Bxb8 {[%clk 0:02:18.3]} 17... Rhxb8 {[%clk 0:01:45.5]} 18. Qf4+ {[%clk
0:02:18.3]} 18... Kg8 {[%clk 0:01:44.6]} 19. Nxd5 {[%clk 0:02:18.9]} 19... Bf8
{[%clk 0:01:32]} 20. Qe4 {[%clk 0:02:18.1]} 20... Nb6 {[%clk 0:01:19.8]} 21.
Nf6+ {[%clk 0:01:43.1]} 21... gxf6 {[%clk 0:01:13]} 22. Qxg6+ {[%clk 0:01:35.7]}
22... Kh8 {[%clk 0:01:05.7]} 23. Qxh5+ {[%clk 0:01:33.4]} 23... Kg7 {[%clk
0:00:56.5]} 24. gxf6+ {[%clk 0:01:32.8]} 24... Kxf6 {[%clk 0:00:56.5]} 25. Nf4
{[%clk 0:01:24.8]} 25... c3 {[%clk 0:00:39.6]} 26. Qe5+ {[%clk 0:01:24.5]} 26...
Kf7 {[%clk 0:00:39.1]} 27. Qe6+ {[%clk 0:01:24.4]} 27... Kg7 {[%clk 0:00:38.8]}
28. Rhg1+ {[%clk 0:01:25]} 28... Kh7 {[%clk 0:00:38.8]} 29. Qg8+ {[%clk
0:01:24.9]} 1-0

[Event "Late-Titled-Tuesday-Blitz-May-07-2024"]
[Site "Chess.com"]
[Date "2024.05.07"]
[Round "8"]
[White "Fins0905"]
[Black "N_Mullodzhanov"]
[Result "1-0"]
[WhiteElo "2736"]
[BlackElo "2555"]
[TimeControl "180+1"]
[EndTime "15:27:01 PDT"]
[Termination "Fins0905 won by checkmate"]

1. c4 {[%clk 0:03:00.9]} 1... Nf6 {[%clk 0:02:59.9]} 2. g3 {[%clk 0:02:58.5]}
2... g6 {[%clk 0:02:59.9]} 3. Bg2 {[%clk 0:02:58.6]} 3... Bg7 {[%clk 0:03:00.5]}
4. Nc3 {[%clk 0:02:58.7]} 4... O-O {[%clk 0:03:00.7]} 5. e4 {[%clk 0:02:59]}
5... d6 {[%clk 0:03:01.1]} 6. Nge2 {[%clk 0:02:59]} 6... c5 {[%clk 0:03:01.2]}
7. d3 {[%clk 0:02:59.1]} 7... Nc6 {[%clk 0:03:01.5]} 8. O-O {[%clk 0:02:59.2]}
8... e5 {[%clk 0:03:00.8]} 9. h3 {[%clk 0:02:59.1]} 9... h6 {[%clk 0:03:00.3]}
10. f4 {[%clk 0:02:57.1]} 10... Nd4 {[%clk 0:02:58.9]} 11. Nxd4 {[%clk
0:02:55.4]} 11... cxd4 {[%clk 0:02:56.8]} 12. Ne2 {[%clk 0:02:54.6]} 12... Nd7
{[%clk 0:02:54.1]} 13. f5 {[%clk 0:02:41.8]} 13... a5 {[%clk 0:02:48.4]} 14. g4
{[%clk 0:02:38.5]} 14... Nc5 {[%clk 0:02:43.4]} 15. Ng3 {[%clk 0:02:29]} 15...
Qh4 {[%clk 0:02:42.8]} 16. Kh2 {[%clk 0:02:27.6]} 16... Bd7 {[%clk 0:02:33.6]}
17. b3 {[%clk 0:02:26.2]} 17... b5 {[%clk 0:02:27.9]} 18. Qf3 {[%clk 0:02:18.4]}
18... Qf6 {[%clk 0:02:14.1]} 19. g5 {[%clk 0:02:04.4]} 19... hxg5 {[%clk
0:02:10.3]} 20. Qg4 {[%clk 0:02:04.9]} 20... Bh6 {[%clk 0:01:56.4]} 21. h4
{[%clk 0:01:59.4]} 21... gxh4 {[%clk 0:01:45]} 22. Bxh6 {[%clk 0:01:54.1]} 22...
hxg3+ {[%clk 0:01:45.1]} 23. Kxg3 {[%clk 0:01:07.5]} 23... Nxd3 {[%clk
0:01:44.2]} 24. Rh1 {[%clk 0:00:48.5]} 24... Rfd8 {[%clk 0:01:17.2]} 25. Bg5
{[%clk 0:00:38.9]} 25... gxf5 {[%clk 0:01:11.3]} 26. Bxf6+ {[%clk 0:00:37.5]}
26... fxg4 {[%clk 0:01:10.2]} 27. Rh8# {[%clk 0:00:37.4]} 1-0

[Event "Late-Titled-Tuesday-Blitz-May-07-2024"]
[Site "Chess.com"]
[Date "2024.05.07"]
[Round "8"]
[White "Romkachess"]
[Black "semchik90"]
[Result "1-0"]
[WhiteElo "2619"]
[BlackElo "2445"]
[TimeControl "180+1"]
[EndTime "15:27:02 PDT"]
[Termination "Romkachess won by resignation"]

1. e4 {[%clk 0:03:00.9]} 1... Nf6 {[%clk 0:00:50.8]} 2. e5 {[%clk 0:02:59.1]}
2... Nd5 {[%clk 0:00:47.5]} 3. c4 {[%clk 0:03:00]} 3... Nb6 {[%clk 0:00:45.7]}
4. d4 {[%clk 0:03:00.9]} 4... d6 {[%clk 0:00:45.3]} 5. exd6 {[%clk 0:03:01.8]}
5... cxd6 {[%clk 0:00:45.3]} 6. Nf3 {[%clk 0:03:02.7]} 6... g6 {[%clk
0:00:45.8]} 7. Nc3 {[%clk 0:03:03.1]} 7... Bg7 {[%clk 0:00:46.5]} 8. Be3 {[%clk
0:03:02.6]} 8... O-O {[%clk 0:00:47]} 9. Rc1 {[%clk 0:03:00.4]} 9... Nc6 {[%clk
0:00:46]} 10. b3 {[%clk 0:03:00.9]} 10... Bf5 {[%clk 0:00:42.5]} 11. Be2 {[%clk
0:02:59.4]} 11... e5 {[%clk 0:00:41.4]} 12. O-O {[%clk 0:02:58.7]} 12... e4
{[%clk 0:00:38.6]} 13. Ng5 {[%clk 0:02:49.1]} 13... Re8 {[%clk 0:00:34.8]} 14.
d5 {[%clk 0:02:32.3]} 14... Ne5 {[%clk 0:00:34.6]} 15. Ngxe4 {[%clk 0:01:57.1]}
15... Nexc4 {[%clk 0:00:34.5]} 16. Bg5 {[%clk 0:01:44.4]} 16... Qd7 {[%clk
0:00:25]} 17. Nf6+ {[%clk 0:01:34.4]} 17... Bxf6 {[%clk 0:00:25.4]} 18. Bxf6
{[%clk 0:01:35.3]} 18... Ne5 {[%clk 0:00:22.7]} 19. Qd2 {[%clk 0:01:24.8]} 19...
Bg4 {[%clk 0:00:08.5]} 20. Qh6 {[%clk 0:01:24.4]} 1-0

[Event "Late-Titled-Tuesday-Blitz-May-07-2024"]
[Site "Chess.com"]
[Date "2024.05.07"]
[Round "8"]
[White "maximnovik"]
[Black "Emp3rador"]
[Result "1-0"]
[WhiteElo "2495"]
[BlackElo "2622"]
[TimeControl "180+1"]
[EndTime "15:27:04 PDT"]
[Termination "maximnovik won by resignation"]

1. e4 {[%clk 0:03:00.9]} 1... d5 {[%clk 0:02:59.4]} 2. exd5 {[%clk 0:03:00.7]}
2... Qxd5 {[%clk 0:03:00.3]} 3. Nc3 {[%clk 0:03:01.2]} 3... Qd6 {[%clk
0:03:00.8]} 4. d4 {[%clk 0:03:00.5]} 4... Nf6 {[%clk 0:02:59.7]} 5. Bc4 {[%clk
0:02:58.9]} 5... a6 {[%clk 0:02:59.6]} 6. Nf3 {[%clk 0:02:58.2]} 6... b5 {[%clk
0:02:59.9]} 7. Be2 {[%clk 0:02:58.2]} 7... Bb7 {[%clk 0:03:00.1]} 8. O-O {[%clk
0:02:57.8]} 8... Nbd7 {[%clk 0:03:00.2]} 9. Re1 {[%clk 0:02:50.1]} 9... e6
{[%clk 0:03:00.3]} 10. Ne5 {[%clk 0:02:46.4]} 10... c5 {[%clk 0:02:41.7]} 11.
Bf3 {[%clk 0:02:43.9]} 11... Bxf3 {[%clk 0:02:29.4]} 12. Qxf3 {[%clk 0:02:43.7]}
12... Rd8 {[%clk 0:02:28.9]} 13. Bf4 {[%clk 0:02:38.8]} 13... cxd4 {[%clk
0:02:11.9]} 14. Nxf7 {[%clk 0:02:36.1]} 14... Qb6 {[%clk 0:02:09.8]} 15. Nxd8
{[%clk 0:02:25.5]} 15... Kxd8 {[%clk 0:02:09.6]} 16. Ne4 {[%clk 0:02:23.6]}
16... Nd5 {[%clk 0:02:07.6]} 17. Bg5+ {[%clk 0:02:23.1]} 17... Kc8 {[%clk
0:02:06.2]} 18. c3 {[%clk 0:02:13.9]} 18... dxc3 {[%clk 0:01:23.2]} 19. Nxc3
{[%clk 0:02:13.3]} 19... Nxc3 {[%clk 0:01:22]} 20. Qxc3+ {[%clk 0:02:11.7]}
20... Kb7 {[%clk 0:01:16.6]} 21. Rad1 {[%clk 0:02:03]} 21... Nb8 {[%clk
0:01:10.7]} 22. Rd8 {[%clk 0:01:45.5]} 22... Nc6 {[%clk 0:00:46.2]} 23. Re8
{[%clk 0:01:39.2]} 23... e5 {[%clk 0:00:36.6]} 24. Qf3 {[%clk 0:01:32.2]} 24...
h6 {[%clk 0:00:29.3]} 25. Be3 {[%clk 0:01:29.8]} 25... Qc7 {[%clk 0:00:29.3]}
26. Rxf8 {[%clk 0:01:28.8]} 26... e4 {[%clk 0:00:28.5]} 27. Qf5 {[%clk
0:01:26.1]} 1-0